Cogmind - Beta 16 @@@ ROGUE MODE // 2025.11.13 @ 15:38:00 Player: BVrutally Odd Result: Destroyed by C-35 Carver with Carbide Saw Performance ------------- Evolutions (7) 3500 Regions Visited (24) 4800 Robots Destroyed (179) 895 Value Destroyed (8211) 8211 Prototype IDs (103) 2060 Alien Tech Used (2) 400 Bonus (8161) 8161 TOTAL SCORE: 28027 Bonus ------- High Alert Combat Kills 94 Follower Combat Kills 539 Registered with UFD 300 Met Optimus in HQ 500 Met Data Miner 300 Met Zhirov 300 Met Warlord at Base 500 MAIN.C Attacked Warlord 500 Warlord Defense Kills 3684 Used Core Reset Matrix 3000 Friendly Fire -1556 Cogmind --------- Core Integrity 0/1300 Matter 205/300 Energy 84/100 System Corruption 7% Temperature Cool (0) Movement Core (300) Ox5 Location -3/Section 7 Parts ------- > --- POWER (2) -------- (None) > --- PROPULSION (6) --- (None) > --- UTILITY (10) ----- (None) > --- WEAPON (3) ------- Vortex Driver > --- INVENTORY (5) ---- Dimensional Node Initializer Transdimensional Reconstructor Spacefold Activator Advanced Remote Datajack Peak State ------------ > --- POWER ------------ Vortex Chain Reactor > --- PROPULSION ------- Enhanced Flexi-carbon Leg Myomer Leg Myomer Leg Enhanced Biometal Leg Experimental Myomer Leg Experimental Myomer Leg > --- UTILITY ---------- Experimental Coolant Injector Huge Storage Unit Enhanced Optical Array Makeshift Sensor Array Advanced Signal Interpreter Improved Shield Generator Advanced Hacking Suite Ghost Barrier A0-MCA's Component Scanner Rainbow Chip > --- WEAPON ----------- Enhanced Nova Cannon Chain Missile Launcher > --- INVENTORY -------- Light Antimatter Reactor Xenon Bombardment Thruster Cooled Nuclear Pulse Thruster Cooled Nuclear Pulse Thruster Cooled Nuclear Pulse Thruster Advanced Energy Well Advanced Energy Well Advanced Energy Well Advanced Targeting Computer Particle Accelerator Advanced Reaction Control System Layered Medium Armor Plating Graphene Brace Dimensional Node Initializer Transdimensional Reconstructor HERF Cannon Neutron Cannon Vortex Driver Enhanced Nova Cannon Improved Proton Missile Launcher [Rating: 178] Favorites ----------- Power Antimatter Reactor Engine Subdweller Power Source Power Core Light Fission Core Reactor Antimatter Reactor Propulsion Enhanced Flexi-carbon Leg Treads Light Treads Leg Enhanced Flexi-carbon Leg Wheel Armored Wheel Hover Unit Cooled Gravmag System Utility Huge Storage Unit Device Improved Sensor Array Storage Huge Storage Unit Processor A0-MCA's Component Scanner Hackware Advanced Hacking Suite Protection Layered Medium Armor Plating Weapon Neutron Cannon Energy Gun Subdweller Laser Energy Cannon Neutron Cannon Ballistic Gun Subdweller Machine Gun Ballistic Cannon Hardcell Cannon Launcher Grenade Launcher Special Weapon Remote Datajack Slashing Weapon Falx Build | -11 -10 -10 -9 -9 -6 -6 -6 -6 -5 -5 -5 -5 -5 -4 -4 -4 -4 -4 -4 -4 -3 -3 -3 -3 ------- Run | Yrd Mat Sub Rec Scr Fac Low Low Dat Pro Fac Upp Upp Zhi Pro Fac Was Fac Upp Upp War Pro Res Qua Sec Slots Evolved 14 | . . . . . 8 . . . . 2 . . . . 2 . . . . . . 2 . . Power 1 | . . . . . 1 . . . . . . . . . . . . . . . . . . . Propulsion 4 | . . . . . 3 . . . . . . . . . 1 . . . . . . . . . Utility 8 | . . . . . 3 . . . . 2 . . . . 1 . . . . . . 2 . . Weapon 1 | . . . . . 1 . . . . . . . . . . . . . . . . . . . Parts Attached 157 | 7 1 18 3 2 25 9 3 18 4 3 . . 2 . 3 4 14 1 . 6 8 19 5 2 Power 19 | 1 . 3 . 1 3 1 1 1 . 1 . . . . 1 2 . 1 . 1 1 . 1 . Engine 9 | 1 . 3 . 1 3 1 . . . . . . . . . . . . . . . . . . Core 3 | . . . . . . . 1 . . 1 . . . . . . . . . . . . 1 . Reactor 7 | . . . . . . . . 1 . . . . . . 1 2 . 1 . 1 1 . . . Propulsion 45 | 2 . 5 . . 10 3 . 5 . . . . . . 1 2 1 . . 2 2 12 . . Treads 8 | 2 . 2 . . 4 . . . . . . . . . . . . . . . . . . . Leg 16 | . . . . . . . . 5 . . . . . . 1 2 1 . . 2 2 3 . . Wheel 14 | . . 3 . . 6 3 . . . . . . . . . . . . . . . 2 . . Hover 7 | . . . . . . . . . . . . . . . . . . . . . . 7 . . Flight . | . . . . . . . . . . . . . . . . . . . . . . . . . Utility 51 | 2 1 2 2 1 7 3 2 4 2 1 . . 1 . 1 . 10 . . 1 4 4 2 1 Device 23 | 1 . 1 . . 3 2 1 1 1 . . . . . 1 . 6 . . 1 2 . 2 1 Storage 6 | 1 1 . 2 . . . . . . . . . . . . . 1 . . . . 1 . . Processor 7 | . . . . . 3 . . . . 1 . . . . . . 2 . . . . 1 . . Hackware 3 | . . . . . . . . . . . . . . . . . 1 . . . . 2 . . Protection 12 | . . 1 . 1 1 1 1 3 1 . . . 1 . . . . . . . 2 . . . Artifact . | . . . . . . . . . . . . . . . . . . . . . . . . . Weapon 42 | 2 . 8 1 . 5 2 . 8 2 1 . . 1 . . . 3 . . 2 1 3 2 1 Energy Gun 6 | 2 . 3 . . . 1 . . . . . . . . . . . . . . . . . . Energy Cannon 18 | . . 1 1 . 1 . . 5 1 1 . . 1 . . . 1 . . . 1 2 2 1 Ballistic Gun 3 | . . 1 . . 1 1 . . . . . . . . . . . . . . . . . . Ballistic Cannon 4 | . . 1 . . . . . . . . . . . . . . 1 . . 1 . 1 . . Launcher 6 | . . 2 . . 2 . . . 1 . . . . . . . . . . 1 . . . . Special Weapon 4 | . . . . . . . . 3 . . . . . . . . 1 . . . . . . . Impact Weapon . | . . . . . . . . . . . . . . . . . . . . . . . . . Slashing Weapon 1 | . . . . . 1 . . . . . . . . . . . . . . . . . . . Piercing Weapon . | . . . . . . . . . . . . . . . . . . . . . . . . . Special Melee Weapon . | . . . . . . . . . . . . . . . . . . . . . . . . . Unidentified Prototypes 2 | . . . . . . . . . . . . . 1 . . . . . . . . . 1 . Corrupted Parts 2 | . . . . . . . . . . . . . . . . . . . . 2 . . . . System Corruption 3 | . . . . . . . . . . . . . . . . . . . . 3 . . . . Parts Lost 62 | . . 8 . . 9 2 1 7 . . . . . . . . 6 1 . . 8 2 3 15 Power 10 | . . 2 . . 1 1 . 1 . . . . . . . . . 1 . . 2 . 1 1 Propulsion 26 | . . 3 . . 7 1 1 2 . . . . . . . . 1 . . . 3 1 1 6 Utility 15 | . . 1 . . . . . 1 . . . . . . . . 3 . . . 2 . 1 7 Weapon 11 | . . 2 . . 1 . . 3 . . . . . . . . 2 . . . 1 1 . 1 Highest Loss Streak 15 | . . 3 . . 7 2 1 4 . . . . . . . . 2 1 . . 4 1 3 15 To Critical Strikes . | . . . . . . . . . . . . . . . . . . . . . . . . . Average Backups 19 | . 4 9 18 19 22 22 23 22 24 23 24 24 24 25 24 25 24 24 25 24 20 21 7 6 Power 1 | . . 1 2 1 . . . . . . 1 1 1 1 . . 1 1 2 1 . 1 . . Propulsion 3 | . 2 3 5 6 3 . . . 1 2 2 2 3 5 4 4 4 5 5 5 3 4 . . Utility 8 | . . 2 4 3 5 13 12 12 14 13 14 14 13 13 13 14 12 11 12 11 9 8 2 1 Weapon 5 | . . 3 6 7 9 7 7 7 6 5 5 5 4 3 3 4 3 4 4 4 4 4 1 1 Tool/Special . | . . . . . . . . . . . . . . . . . . . . . . . . . Unused Backups 37 | . . . . 1 2 2 2 4 2 . . . 2 . 1 . 1 . . 3 . 13 . 4 Power 5 | . . . . . 1 . . . . . . . . . . . . . . 2 . 2 . . Propulsion 7 | . . . . 1 1 . . . . . . . . . . . . . . . . 5 . . Utility 21 | . . . . . . 2 2 4 1 . . . 2 . 1 . 1 . . 1 . 6 . 1 Weapon 1 | . . . . . . . . . 1 . . . . . . . . . . . . . . . Tool/Special 3 | . . . . . . . . . . . . . . . . . . . . . . . . 3 Average Slot Usage (%) 93 | . 100 92 100 100 93 88 92 80 100 99 100 100 93 88 91 94 96 99 100 98 86 74 74 47 Engine 6 | . 14 13 14 14 11 11 13 2 . . . . . . . . . . . . . . . . Core 1 | . . . . . . . . 6 6 5 5 5 5 5 5 1 . . . . . . 2 2 Reactor 4 | . . . . . . . . 2 6 5 5 5 5 5 7 13 13 9 10 10 6 4 1 . Treads 4 | . 28 17 6 . 13 . . . . . . . . . . . . . . . . . . . Leg 14 | . . . . . . . . 11 33 29 29 29 27 27 30 29 30 31 31 31 27 22 . . Wheel 8 | . . 10 21 28 18 24 25 10 . . . . . . . . . . . . . . . . Device 8 | . 14 9 . . 8 6 6 6 6 10 11 11 11 11 14 15 9 10 10 10 11 12 8 5 Storage 8 | . 14 14 14 14 6 6 6 6 6 5 5 5 5 5 5 5 5 5 5 5 5 4 4 2 Processor 10 | . . . . . 9 13 13 13 13 17 17 17 16 16 15 15 19 21 21 21 16 16 16 13 Hackware 1 | . . . . . . . . . . . . . . . . . 2 5 5 5 5 8 12 8 Protection 5 | . . 3 14 14 6 6 6 5 5 5 5 5 5 5 5 5 3 . . . 1 . . . Energy Gun 5 | . 28 8 19 14 4 4 6 . . . . . . . . . . . . . . . . . Energy Cannon 9 | . . 5 8 14 5 5 6 8 19 17 16 17 12 11 9 10 11 10 10 8 9 6 2 3 Ballistic Cannon 1 | . . 3 . . . . . . . . . . . . . . . 5 5 4 . . . . Peak Build Rating 178 | 7 7 21 21 22 57 67 65 104 106 113 115 113 116 118 137 145 147 141 141 152 152 178 165 134 Average Rating 82 | 5 7 13 20 20 51 62 62 69 100 112 113 113 114 116 131 140 141 140 141 145 138 163 138 84 On Entrance 91 | . 7 7 20 21 21 54 62 65 100 101 113 113 113 116 116 137 142 141 141 141 152 124 156 134 Avg Prop Armor Cover (%) 13 | . . 13 . . 14 14 . 8 . . . . . . . . . . . . . 15 . . Naked Turns 13 | . . . . . . . . . . . . . . . . . . . . . . . . 13 Heaviest Build 170 | 15 50 61 101 104 128 133 111 137 142 139 139 139 139 138 148 161 161 149 144 161 170 158 70 46 Greatest Support 168 | 40 40 40 40 24 64 76 64 140 140 140 140 140 140 140 168 168 168 168 168 168 162 161 81 75 Greatest Overweight (x) 7 | . 1 4 4 4 5 2 2 7 1 . . . . . . 1 . . . . 1 4 . 1 Average Overweight (x) 1 | . . 2 3 4 2 1 1 1 . . . . . . . . . . . . . . . . Largest Inventory Capacity 25 | 8 20 20 25 25 25 25 25 25 25 25 25 25 25 25 25 25 25 25 25 25 25 25 10 10 Average Capacity 23 | 7 15 20 23 25 25 25 25 25 25 25 25 25 25 25 25 25 25 25 25 25 25 24 10 7 Most Carried 25 | . 5 20 21 25 25 25 25 25 25 25 25 25 25 25 25 25 25 25 25 25 25 25 10 10 Average Carried 20 | . 4 10 20 21 23 24 24 23 24 24 25 25 24 25 24 25 24 24 25 24 22 23 8 7 Final Capacity 25 | 8 20 20 25 25 25 25 25 25 25 25 25 25 25 25 25 25 25 25 25 25 25 10 10 5 Final Carried 25 | . 5 19 21 25 25 25 25 25 25 25 25 25 25 25 25 25 24 25 25 25 24 10 8 4 Class Distribution -------------------- 40% | Scavenger-Skirmisher 35% | Mutant 8% | Scavenger-Mutant 4% | Derelict-Mutant 3% | Hacker-Skirmisher Dominant Class ---------------- Mutant | -10/Materials Mutant | -10/Subcaves Mutant | -9/Recycling Mutant | -9/Scraptown Scavenger-Mutant | -6/Factory Scavenger-Mutant | -6/Lower Caves Scavenger-Mutant | -6/Lower Caves Mutant | -6/Data Miner Scavenger-Skirmisher | -5/Proximity Caves Scavenger-Skirmisher | -5/Factory Scavenger-Skirmisher | -5/Upper Caves Scavenger-Skirmisher | -5/Upper Caves Scavenger-Skirmisher | -5/Zhirov Scavenger-Skirmisher | -4/Proximity Caves Scavenger-Skirmisher | -4/Factory Scavenger-Skirmisher | -4/Waste Scavenger-Skirmisher | -4/Factory Scavenger-Skirmisher | -4/Upper Caves Scavenger-Skirmisher | -4/Upper Caves Scavenger-Skirmisher | -4/Warlord Scavenger-Skirmisher | -3/Proximity Caves Hacker-Skirmisher | -3/Research Hacker-Scout | -3/Quarantine Mutant | -3/Section 7 Resources | -11 -10 -10 -9 -9 -6 -6 -6 -6 -5 -5 -5 -5 -5 -4 -4 -4 -4 -4 -4 -4 -3 -3 -3 -3 ----------- Run | Yrd Mat Sub Rec Scr Fac Low Low Dat Pro Fac Upp Upp Zhi Pro Fac Was Fac Upp Upp War Pro Res Qua Sec Matter Collected 5518 | 270 . 461 158 20 518 164 72 251 232 67 45 . 50 60 90 60 299 123 98 1520 317 390 253 . Remotely . | . . . . . . . . . . . . . . . . . . . . . . . . . Salvage Created 8417 | 212 22 445 365 . 1311 456 98 . 249 78 98 . 197 126 137 245 1411 283 50 955 213 1034 401 31 Parts 361 | 10 . 30 13 . 59 18 3 . 8 2 10 . 3 6 1 3 67 2 6 37 12 57 12 2 Haulers Intercepted 3 | . . . . . 1 . . . . . . . . . . . 2 . . . . . . . Recyclers Shooed 8 | . . . 1 . 2 . . . . . . . . . . . 1 . . . . 2 2 . Parts Field Recycled . | . . . . . . . . . . . . . . . . . . . . . . . . . Retrieved Matter . | . . . . . . . . . . . . . . . . . . . . . . . . . Parts Self-Destructed 59 | . . 14 . . . 6 2 . 5 . 10 . 3 6 . . . . 6 . 7 . . . Prevented 3 | . . . . . . . . . 3 . . . . . . . . . . . . . . . Parts Restored . | . . . . . . . . . . . . . . . . . . . . . . . . . Kills | -11 -10 -10 -9 -9 -6 -6 -6 -6 -5 -5 -5 -5 -5 -4 -4 -4 -4 -4 -4 -4 -3 -3 -3 -3 ------- Run | Yrd Mat Sub Rec Scr Fac Low Low Dat Pro Fac Upp Upp Zhi Pro Fac Was Fac Upp Upp War Pro Res Qua Sec Combat Hostiles Destroyed 134 | . . 16 2 . 22 3 1 . 5 1 4 . . 2 . 1 21 1 1 29 7 14 3 1 Melee 8 | . . . . . 7 1 . . . . . . . . . . . . . . . . . . Guns 11 | . . 6 2 . 2 1 . . . . . . . . . . . . . . . . . . Cannons 66 | . . 5 . . . 1 1 . 4 1 4 . . 1 . 1 17 1 1 18 1 9 1 . AOE 40 | . . 5 . . 13 . . . . . . . . . . . . . . 11 5 4 2 . Classes Destroyed 26 | 3 1 3 1 . 6 . 1 . . . . . . 1 . 1 1 . . 6 . 1 . 1 Worker 9 | 2 . . . . 3 . . . . . . . . . . . 2 . . . . 2 . . Builder 1 | . . . . . . . . . . . . . . . . . . . . . . 1 . . Tunneler 6 | 4 . . . . 2 . . . . . . . . . . . . . . . . . . . Hauler 3 | . . . . . 1 . . . . . . . . . . . 2 . . . . . . . Recycler 13 | 1 . . 4 . 3 . . . . . . . . . 1 . . . . . . 2 2 . Operator 3 | . . . . . 1 . . . . . . . . . . . 1 . . . . . 1 . Turret 2 | . . 2 . . . . . . . . . . . . . . . . . . . . . . Watcher 4 | . 1 . . . . . . . . . . . . . . . 1 . . . . 1 1 . Swarmer 29 | . . 3 . . 6 1 . . . . 4 . . . . . . . . 4 4 6 1 . Cutter 1 | . . . . . . . . . . . . . . . . . . . . . . . . 1 Saboteur 2 | . . . . . . . . . . . . . . . . . . . . 2 . . . . Grunt 34 | . . . . . 11 . . . 2 . . . . . . . 8 . . 11 1 1 . . Brawler 1 | . . . . . 1 . . . . . . . . . . . . . . . . . . . Duelist 3 | . . . . . 1 . . . 1 . . . . . . . . . . 1 . . . . Protector 2 | . . . . . . . . . . . . . . . . . . . . 2 . . . . Sentry 10 | . . . 2 . 1 1 . . 1 1 . . . . . . 2 . . . . 2 . . Specialist 1 | . . . . . . . . . . . . . . . . . . . . 1 . . . . Hunter 6 | . . . . . . . . . . . . . . 2 . . . . . 3 . 1 . . Programmer 24 | . . . . . 2 1 1 . 1 . . . . . . . 10 . 1 1 1 4 2 . Behemoth 4 | . . . . . . . . . . . . . . . . . 1 . . 2 1 . . . Compactor 1 | . . . . . . . . . . . . . . . . 1 . . . . . . . . Striker 1 | . . . . . . . . . . . . . . . . . . . . 1 . . . . Executioner 1 | . . . . . . . . . . . . . . . . . . . . 1 . . . . Subdweller 13 | . . 13 . . . . . . . . . . . . . . . . . . . . . . Samaritan 2 | . . . . . . . 1 . . . . . . . . . . . . . 1 . . . Tinkerer 3 | . . . . . . . . . . . . . . . . . . . . 3 . . . . Wasp 2 | . . . . . . . . . . . . . . . . . . . . 2 . . . . Thug 1 | . . . . . . . . . . . . . . . . . . 1 . . . . . . Bouncer 1 | . . . . . . . . . . . . . . . . . . . . 1 . . . . Wizard 1 | . . . . . . . . . . . . . . . . . . . . 1 . . . . Best Kill Streak 10 | 4 1 3 4 . 9 2 1 . 2 1 4 . . 2 1 1 5 1 1 10 4 8 5 1 Combat Bots Only 10 | . . 3 1 . 6 2 1 . 2 1 4 . . 2 . 1 5 1 1 10 4 6 2 1 Max Kills in Single Turn 7 | 1 1 2 1 . 2 1 1 . 1 1 1 . . 1 1 1 1 1 1 7 4 6 2 1 Gunslinging . | . . . . . . . . . . . . . . . . . . . . . . . . . Exploded 5 | . . 1 . . 2 . . . . . . . . . . . . . . 5 4 4 1 . Melee 1 | . . . . . 1 1 . . . . . . . . . . . . . . . . . . Uniques/NPCs Destroyed . | . . . . . . . . . . . . . . . . . . . . . . . . . Combat | -11 -10 -10 -9 -9 -6 -6 -6 -6 -5 -5 -5 -5 -5 -4 -4 -4 -4 -4 -4 -4 -3 -3 -3 -3 -------- Run | Yrd Mat Sub Rec Scr Fac Low Low Dat Pro Fac Upp Upp Zhi Pro Fac Was Fac Upp Upp War Pro Res Qua Sec Hostile Shots Fired 1068 | . . 110 6 . 133 47 6 22 15 4 23 . . 42 15 . 176 7 2 64 87 52 59 198 Missed 359 | . . 31 1 . 37 10 2 3 4 2 3 . . 21 7 . 38 4 1 30 22 17 24 102 Hits 709 | . . 79 5 . 96 37 4 19 11 2 20 . . 21 8 . 138 3 1 34 65 35 35 96 Melee 46 | . . . . . 3 . . . 2 . . . . . . . . . . 1 . . . 40 Projectile 663 | . . 79 5 . 93 37 4 19 9 2 20 . . 21 8 . 138 3 1 33 65 35 35 56 AOE 4 | . . . . . . . . . . . . . . . . . 1 . . . . . . 3 Critical Strikes 40 | . . 2 . . 6 . . . . . . . . 1 . . 9 . . 2 3 1 . 16 Actively Blocked 13 | . . . . . . . . . . . . . . . . . . . . 2 2 . . 9 Part Disruptions 3 | . . . . . . . . . . . . . . . . . 2 . . . . . 1 . Damage Taken 13405 | 12 28 1236 74 . 1789 360 58 834 182 42 188 . . 248 87 . 2288 62 22 759 1390 637 870 2239 Core 2531 | . . 144 28 . 164 53 . 171 12 19 27 . . 26 . . 380 . . 126 76 15 77 1213 Absorbed by Shields 1287 | . . . . . . 18 . . 6 . 120 . . 114 32 . 529 . . . 241 227 . . Ignored by Resistances 540 | . . . . . . . . 42 48 . . . . . . . 179 . . . 271 . . . Regen/Repaired (Parts) 844 | . . . . . . . . . . . . . . . 64 232 264 . . 284 . . . . Core Remaining (%) 64 | 100 . . . 31 . . . . 52 . . . . 92 . . . . . . 49 . . . Volleys Fired 770 | 16 3 106 13 . 34 4 7 18 32 12 12 . 4 22 21 12 96 40 29 113 47 107 18 4 Largest 3 | 2 2 2 2 . 2 2 2 3 3 3 3 . 1 2 1 2 3 3 3 3 3 3 1 1 Hottest 328 | 80 80 140 140 . 150 170 170 131 210 215 215 . 5 130 90 130 270 235 235 235 300 328 160 105 Shots Fired 1137 | 32 6 139 25 . 53 9 10 22 41 16 28 . 4 30 21 18 169 73 60 137 83 139 18 4 Gun 172 | 32 6 89 17 . 19 6 3 . . . . . . . . . . . . . . . . . Cannon 894 | . . 32 8 . 21 3 7 18 32 16 27 . . 30 17 18 168 73 60 128 79 138 15 4 Launcher 57 | . . 18 . . 13 . . . 9 . . . . . . . . . . 9 4 1 3 . Special 14 | . . . . . . . . 4 . . 1 . 4 . 4 . 1 . . . . . . . Kinetic 181 | . . 50 . . 11 2 . . 4 . . . . . . . 4 9 3 98 . . . . Thermal 823 | . . 64 25 . 40 7 10 8 32 16 27 . . 30 17 18 164 64 57 30 79 125 8 2 Explosive 26 | . . 12 . . 2 . . . . . . . . . . . . . . 4 4 1 3 . Electromagnetic 92 | 32 6 13 . . . . . 10 5 . . . . . . . . . . 5 . 13 6 2 Entropic 1 | . . . . . . . . . . . . . . . . . . . . . . . 1 . Robot Hit Streak 22 | 5 2 14 4 . 9 5 3 6 6 11 14 . 4 3 2 8 22 7 9 10 14 11 4 . Robot Miss Streak 6 | 4 1 3 2 . 3 3 2 1 3 . 6 . 1 3 2 1 2 1 . 4 2 3 2 . Penetration Max . | . . . . . . . . . . . . . . . . . . . . . . . . . Secondary Targets . | . . . . . . . . . . . . . . . . . . . . . . . . . Capacitor 1 | . . . . . . . . . . . . . . . . . . . . . . . 1 . Shots Hit Robots 555 | 17 4 55 15 . 64 25 7 19 13 5 6 . 7 7 3 13 100 12 2 74 49 48 10 . Core Hits 313 | 8 1 34 6 . 53 11 3 9 7 2 4 . 2 2 1 3 34 4 2 78 12 24 12 1 Critical Kills 9 | . . . 1 . . . . . . . . . . 1 . . 5 . . . 1 . 1 . Critical Parts Destroyed 1 | . . . . . 1 . . . . . . . . . . . . . . . . . . . Critical Strikes 24 | . . 2 1 . 4 1 . 1 . . . . . 1 . . 5 1 1 4 1 . 2 . Meltdown 8 | . . . . . . . . . . . . . . 1 . . 5 . . . 1 . 1 . Destroy 3 | . . 1 1 . 1 . . . . . . . . . . . . . . . . . . . Blast 6 | . . . . . . . . . . . . . . . . . . 1 1 4 . . . . Corrupt 3 | . . 1 . . . . . 1 . . . . . . . . . . . . . . 1 . Sever 4 | . . . . . 3 1 . . . . . . . . . . . . . . . . . . Melee Attacks 94 | . . . . . 43 29 5 13 . . . . 4 . . . . . . . . . . . Impact . | . . . . . . . . . . . . . . . . . . . . . . . . . Slashing 94 | . . . . . 43 29 5 13 . . . . 4 . . . . . . . . . . . Piercing . | . . . . . . . . . . . . . . . . . . . . . . . . . Sneak Attacks 10 | . . . . . 7 1 1 1 . . . . . . . . . . . . . . . . Combat Hostiles 1 | . . . . . . 1 . . . . . . . . . . . . . . . . . . Follow-up Attacks . | . . . . . . . . . . . . . . . . . . . . . . . . . Damage Inflicted 30521 | 315 97 1867 358 . 4177 1541 240 374 708 175 198 . 370 337 57 610 4643 568 81 7871 2446 2639 801 48 Guns 1527 | 199 68 525 301 . 322 56 56 . . . . . . . . . . . . . . . . . Cannons 16794 | . . 489 57 . 384 35 100 240 402 175 198 . . 337 57 610 4418 468 81 4534 1832 2116 261 . Explosions 8553 | 116 29 841 . . 1977 . . . 306 . . . . . . . 170 100 . 3337 614 523 540 . Melee 3532 | . . . . . 1494 1450 84 134 . . . . 370 . . . . . . . . . . . Ramming 115 | . . 12 . . . . . . . . . . . . . . 55 . . . . . . 48 Kinetic 5846 | . . 574 . . 1019 . . . 190 . . . . . . . 98 84 36 3845 . . . . Thermal 13780 | 116 29 627 358 . 965 91 156 109 402 175 198 . . 337 57 610 4490 384 45 910 1832 1803 86 . Explosive 5853 | . . 535 . . 699 . . . . . . . . . . . . . . 2942 614 523 540 . Electromagnetic 1395 | 199 68 119 . . . . . 131 116 . . . . . . . . 100 . 174 . 313 175 . Impact . | . . . . . . . . . . . . . . . . . . . . . . . . . Slashing 3532 | . . . . . 1494 1450 84 134 . . . . 370 . . . . . . . . . . . Piercing . | . . . . . . . . . . . . . . . . . . . . . . . . . Highest Corruption 11 | . . . . . 4 5 5 2 2 . . . . . . . 11 11 11 11 3 3 5 7 Average Corruption 4 | . . . . . 3 4 4 2 2 . . . . . . . 4 11 11 5 3 2 4 2 Corruption Purged 3 | . . . . . . . 3 . . . . . . . . . . . . . . . . . Corruption Blocked . | . . . . . . . . . . . . . . . . . . . . . . . . . Effects 192 | . . . . . 21 16 7 11 9 . . . . . . . 29 30 35 3 14 14 1 2 Message Errors 48 | . . . . . 4 8 . 1 4 . . . . . . . 7 8 8 2 1 3 1 1 Matter Fused 44 | . . . . . 4 2 3 3 . . . . . . . . 4 11 9 1 4 3 . . Heat Flow Errors 21 | . . . . . 4 1 . 3 1 . . . . . . . 7 2 2 . . 1 . . Energy Discharges 29 | . . . . . 2 2 1 3 3 . . . . . . . 3 5 6 . 1 3 . . Parts Rejected 1 | . . . . . 1 . . . . . . . . . . . . . . . . . . . Parts Fused 3 | . . . . . . 1 . . . . . . . . . . . . . . 2 . . . Data Loss (minor) 14 | . . . . . 1 . . . . . . . . . . . 1 1 5 . 3 3 . . Data Loss (major) 12 | . . . . . 1 . 1 1 1 . . . . . . . 3 . 3 . 1 . . 1 Misfires 6 | . . . . . 1 2 . . . . . . . . . . . 1 1 . . 1 . . Alerts 6 | . . . . . 3 . 2 . . . . . . . . . . . . . 1 . . . Weapon Failures 8 | . . . . . . . . . . . . . . . . . 4 2 1 . 1 . . . Overload Shots . | . . . . . . . . . . . . . . . . . . . . . . . . . Overflow Damage 1890 | 4 . 6 . . 359 470 . . 13 . . . 168 . . . 245 68 . 257 143 126 20 11 Projectiles 643 | . . . . . 9 28 . . 13 . . . . . . . 184 34 . 197 66 112 . . Explosions 368 | 4 . 6 . . 92 . . . . . . . . . . . 61 34 . 60 77 14 20 . Melee 879 | . . . . . 258 442 . . . . . . 168 . . . . . . . . . . 11 Knockbacks 14 | . . 1 . . . . . . . . . . . . . . . 1 . 12 . . . . Impact . | . . . . . . . . . . . . . . . . . . . . . . . . . Kinetic 14 | . . 1 . . . . . . . . . . . . . . . 1 . 12 . . . . Secondary . | . . . . . . . . . . . . . . . . . . . . . . . . . Self-Inflicted Damage 727 | 12 28 86 . . 166 . . . . . . . . . . . 113 . . . 65 . 234 23 Shots 18 | 1 1 3 . . 4 . . . . . . . . . . . 2 . . . 1 . 6 . Rammed 7 | . . 4 . . . . . . . . . . . . . . . . . . . . . 3 Targets Rammed 9 | . . 4 . . . . . . . . . . . . . . 2 . . . . . . 3 Kicked 2 | . . . . . . . . . . . . . . . . . 2 . . . . . . . Crushed . | . . . . . . . . . . . . . . . . . . . . . . . . . Highest Temperature 435 | 144 36 295 372 . 227 251 274 283 435 176 195 . . . . . 355 402 244 147 363 198 8 . Average Temperature 87 | 71 20 71 145 . 79 105 122 121 115 59 86 . . . . . 105 76 66 56 109 48 8 . Received Heat Transfer 2344 | . . 591 18 . 489 48 . . 72 9 . . . . . . 315 18 . 21 503 62 90 108 Effects 17 | . . 2 . . 2 3 . . 2 . . . . . . . 3 . . . 5 . . . Shutdowns 4 | . . . . . . . . . 1 . . . . . . . 1 . . . 2 . . . Interference 12 | . . 2 . . 2 3 . . . . . . . . . . 2 . . . 3 . . . Matter Decay 1 | . . . . . . . . . 1 . . . . . . . . . . . . . . . Siege Activations . | . . . . . . . . . . . . . . . . . . . . . . . . . Martial Activations . | . . . . . . . . . . . . . . . . . . . . . . . . . Shielding Activations . | . . . . . . . . . . . . . . . . . . . . . . . . . Robots Disrupted 3 | . . 1 . . . . . 1 . . . . . . . . . . . . 1 . . . Combat Hostiles 2 | . . 1 . . . . . 1 . . . . . . . . . . . . . . . . Robots Corrupted 4 | . . . . . . . . . 1 . . . . . . . . . . . . 1 1 1 Combat Hostiles 3 | . . . . . . . . . 1 . . . . . . . . . . . . 1 . 1 Parts Fried 4 | . . . . . . . . . 1 . . . . . . . . . . . . . 2 1 Impact Corruptions 2 | . . . . . . . . . . . . . . . . . 1 . . . . . . 1 Robots Melted 8 | . . . . . . . . . . . . . . 1 . . 5 . . . 1 . 1 . Combat Hostiles 6 | . . . . . . . . . . . . . . 1 . . 4 . . . 1 . . . Parts Melted 17 | . . . 2 . 1 . . . . . 1 . . 2 . . 5 . . . 1 3 2 . Heat Transferred 5604 | 200 50 818 449 . 1068 162 211 222 74 100 200 . . . . . 150 . . 50 370 1406 74 . Parts Sabotaged . | . . . . . . . . . . . . . . . . . . . . . . . . . Parts Stolen . | . . . . . . . . . . . . . . . . . . . . . . . . . Parts Stripped . | . . . . . . . . . . . . . . . . . . . . . . . . . Power Chain Reactions 9 | 3 1 . . . . . . . . . . . . . . . 1 1 . 3 . . . . Alert | -11 -10 -10 -9 -9 -6 -6 -6 -6 -5 -5 -5 -5 -5 -4 -4 -4 -4 -4 -4 -4 -3 -3 -3 -3 ------- Run | Yrd Mat Sub Rec Scr Fac Low Low Dat Pro Fac Upp Upp Zhi Pro Fac Was Fac Upp Upp War Pro Res Qua Sec Maximum Alert Level 2 | . . . . . 2 . . . . . . . . . . . 1 . . . . 1 1 1 Low Security (%) 70 | 100 100 . 100 . 32 . . . . 100 . . . . 100 100 73 . . . . 39 21 60 Level 1 21 | . . . . . 17 . . . . . . . . . . . 26 . . . . 60 78 39 Level 2 8 | . . . . . 50 . . . . . . . . . . . . . . . . . . . Level 3 . | . . . . . . . . . . . . . . . . . . . . . . . . . Level 4 . | . . . . . . . . . . . . . . . . . . . . . . . . . Level 5 . | . . . . . . . . . . . . . . . . . . . . . . . . . High Security . | . . . . . . . . . . . . . . . . . . . . . . . . . Max Security . | . . . . . . . . . . . . . . . . . . . . . . . . . Peak Influence 585 | 15 9 . 105 . 585 . . . . 32 . . . . 6 52 337 . . . . 292 304 386 Initial 144 | . . . 74 . . . . . . . . . . . . . . . . . . 32 144 142 Average 130 | 2 . . 36 . 336 . . . . 3 . . . . . 9 133 . . . . 171 248 225 Influence Increases 5241 | 35 9 160 263 . 991 85 30 . 127 52 90 . 10 50 40 86 1059 5 30 610 170 635 250 454 Destroy 0b10 Robot/C 2480 | . . 100 40 . 440 60 20 . 100 20 80 . . 40 . . 520 . 20 540 140 280 60 20 Destroy 0b10 Robot/NC 220 | 35 5 . 20 . 50 . . . . . . . 10 . 5 . 30 5 . 10 . 30 20 . Destroy Leader 404 | . 2 . . . 92 10 10 . 20 10 10 . . 10 . . 126 . 10 . 30 62 2 10 Allied During Kill 91 | . . . . . . . . . 7 . . . . . . . 84 . . . . . . . Successful Hack 149 | . . . 32 . 24 . . . . . . . . . 5 . 45 . . . . 43 . . Select Force Hacks 150 | . . . 150 . . . . . . . . . . . . . . . . . . . . . Disable Machine 405 | . . . 15 . 270 . . . . . . . . . . . 60 . . . . . 45 15 Destroy Structure 682 | . 2 . 6 . 100 . . . . 22 . . . . 30 86 194 . . . . 190 48 4 Partial Spotted 75 | . . . . . . . . . . . . . . . . . . . . . . . 15 60 Lose Combat Pursuer 585 | . . 60 . . 15 15 . . . . . . . . . . . . . 60 . 30 60 345 Influence Decreases 4855 | 35 9 4 419 . 462 502 122 20 127 52 90 . 10 50 40 86 730 334 12 198 552 427 252 322 Entered New Map 1130 | . . . 82 . . 196 22 20 . . . . . . . . . 122 . 18 430 16 112 112 Time Decay 3108 | 35 9 4 337 . 372 286 100 . 107 52 90 . 10 50 40 86 453 202 12 180 122 391 110 60 Lost Part 380 | . . . . . 90 20 . . . . . . . . . . 60 10 . . . 20 30 150 Lost Ally 237 | . . . . . . . . . 20 . . . . . . . 217 . . . . . . . Squads Dispatched 20 | . . . . . 2 . . . . . . . . . 2 . 8 . . . . 3 1 4 Investigation 2 | . . . . . . . . . . . . . . . . . 1 . . . . . . 1 Extermination 11 | . . . . . 1 . . . . . . . . . 2 . 4 . . . . 3 1 . Reinforcement 7 | . . . . . 1 . . . . . . . . . . . 3 . . . . . . 3 Assault . | . . . . . . . . . . . . . . . . . . . . . . . . . Garrison . | . . . . . . . . . . . . . . . . . . . . . . . . . Intercept . | . . . . . . . . . . . . . . . . . . . . . . . . . Searches Triggered . | . . . . . . . . . . . . . . . . . . . . . . . . . Construction Impeded . | . . . . . . . . . . . . . . . . . . . . . . . . . Haulers Reinforced 2 | . . . . . . . . . . . . . . . . . 2 . . . . . . . Active Scanning Responses . | . . . . . . . . . . . . . . . . . . . . . . . . . Cargo Convoy Interrupts . | . . . . . . . . . . . . . . . . . . . . . . . . . Stealth | -11 -10 -10 -9 -9 -6 -6 -6 -6 -5 -5 -5 -5 -5 -4 -4 -4 -4 -4 -4 -4 -3 -3 -3 -3 --------- Run | Yrd Mat Sub Rec Scr Fac Low Low Dat Pro Fac Upp Upp Zhi Pro Fac Was Fac Upp Upp War Pro Res Qua Sec Distress Signals 10 | . . . . . 1 . . . . . . . . . . . 1 . . 2 . 3 3 . Communications Jammed . | . . . . . . . . . . . . . . . . . . . . . . . . . Distress Signals . | . . . . . . . . . . . . . . . . . . . . . . . . . Times Spotted 269 | . 2 19 1 . 31 4 1 4 4 1 4 . . 2 5 4 26 5 1 80 7 19 14 35 Peak Tracking Total 26 | . 1 3 1 . 6 3 1 2 3 1 4 . . 2 5 2 4 4 1 9 4 5 4 26 Tactical Retreats 17 | . . 2 . . 1 1 . . . . . . . . . . . 1 . 3 . 2 2 5 Traps | -11 -10 -10 -9 -9 -6 -6 -6 -6 -5 -5 -5 -5 -5 -4 -4 -4 -4 -4 -4 -4 -3 -3 -3 -3 ------- Run | Yrd Mat Sub Rec Scr Fac Low Low Dat Pro Fac Upp Upp Zhi Pro Fac Was Fac Upp Upp War Pro Res Qua Sec Traps Triggered 7 | . . 1 . . . . . . . . . . . . 1 . 2 . . . . 1 1 1 Indirectly . | . . . . . . . . . . . . . . . . . . . . . . . . . Trap Hack Attempts . | . . . . . . . . . . . . . . . . . . . . . . . . . Triggered . | . . . . . . . . . . . . . . . . . . . . . . . . . Disarmed . | . . . . . . . . . . . . . . . . . . . . . . . . . Reprogrammed . | . . . . . . . . . . . . . . . . . . . . . . . . . Reused . | . . . . . . . . . . . . . . . . . . . . . . . . . Traps Extracted . | . . . . . . . . . . . . . . . . . . . . . . . . . Installed . | . . . . . . . . . . . . . . . . . . . . . . . . . Triggered . | . . . . . . . . . . . . . . . . . . . . . . . . . Machines | -11 -10 -10 -9 -9 -6 -6 -6 -6 -5 -5 -5 -5 -5 -4 -4 -4 -4 -4 -4 -4 -3 -3 -3 -3 ---------- Run | Yrd Mat Sub Rec Scr Fac Low Low Dat Pro Fac Upp Upp Zhi Pro Fac Was Fac Upp Upp War Pro Res Qua Sec Machines Disabled 35 | . . 5 1 . 18 . . 1 1 . . . . . . . 4 1 . . . . 3 1 Max in Single Turn 4 | . . 4 1 . 3 . . 1 1 . . . . . . . 2 1 . . . . 1 1 Garrison Access 2 | . . . . . 1 . . . . . . . . . . . . . . . . . 1 . Machines Repaired . | . . . . . . . . . . . . . . . . . . . . . . . . . Machines Dismantled . | . . . . . . . . . . . . . . . . . . . . . . . . . Machines Sabotaged . | . . . . . . . . . . . . . . . . . . . . . . . . . Overloaded Fab Kills . | . . . . . . . . . . . . . . . . . . . . . . . . . Hacking | -11 -10 -10 -9 -9 -6 -6 -6 -6 -5 -5 -5 -5 -5 -4 -4 -4 -4 -4 -4 -4 -3 -3 -3 -3 --------- Run | Yrd Mat Sub Rec Scr Fac Low Low Dat Pro Fac Upp Upp Zhi Pro Fac Was Fac Upp Upp War Pro Res Qua Sec Machines Accessed 52 | . . 1 11 2 2 1 . 4 1 . . . 4 . 6 . 6 3 . 1 . 6 3 1 Terminals 21 | . . . 6 . 1 . . . . . . . . . 4 . 3 . . . . 4 2 1 Fabricators 2 | . . . . . . . . . . . . . . . 1 . 1 . . . . . . . Repair Stations 1 | . . . . . . . . . . . . . . . 1 . . . . . . . . . Recycling Units 6 | . . . 5 . . . . . . . . . . . . . 1 . . . . . . . Scanalyzers 3 | . . . . . . . . . . . . . . . . . 1 . . . . 2 . . Garrison Access 2 | . . . . . 1 . . . . . . . . . . . . . . . . . 1 . Total Hacks 153 | . . 1 26 14 3 1 . 30 1 . . . 17 . 10 . 15 8 . 1 . 19 6 1 Successful 116 | . . 1 18 14 2 1 . 30 1 . . . 17 . 5 . 8 8 . 1 . 8 1 1 Failed 36 | . . . 8 . 1 . . . . . . . . . 5 . 6 . . . . 11 5 . Catastrophic 10 | . . . . . . . . . . . . . . . 2 . 1 . . . . 4 3 . Database Lockouts 1 | . . . . . . . . . . . . . . . . . 1 . . . . . . . Manual 47 | . . . 25 . . . . . . . . . . . 4 . 7 . . 1 . 5 5 . Terminals 59 | . . . 18 . 2 . . . . . . . . . 7 . 9 . . . . 17 5 1 Fabricators 3 | . . . . . . . . . . . . . . . 1 . 2 . . . . . . . Repair Stations 2 | . . . . . . . . . . . . . . . 2 . . . . . . . . . Recycling Units 9 | . . . 8 . . . . . . . . . . . . . 1 . . . . . . . Scanalyzers 5 | . . . . . . . . . . . . . . . . . 3 . . . . 2 . . Garrison Access 2 | . . . . . 1 . . . . . . . . . . . . . . . . . 1 . Terminal Hacks 84 | . . 1 1 14 1 1 . 30 1 . . . 17 . 1 . 2 8 . 1 . 5 . 1 Record 37 | . . . . 14 . . . 11 1 . . . 5 . . . . 6 . . . . . . Part Schematic 14 | . . . . . . . . 10 . . . . 4 . . . . . . . . . . . Robot Schematic 6 | . . . . . . . . 6 . . . . . . . . . . . . . . . . Robot Analysis 4 | . . . . . . . . . . . . . 4 . . . . . . . . . . . Prototype ID Bank 7 | . . . . . . . . 3 . . . . 4 . . . . . . . . . . . Open Door 6 | . . . . . . 1 . . . . . . . . . . . 2 . 1 . 1 . 1 Branch Access Points 2 | . . . . . . . . . . . . . . . . . 1 . . . . 1 . . Terminal Index 2 | . . . . . 1 . . . . . . . . . . . 1 . . . . . . . Recall Extermination 1 | . . . . . . . . . . . . . . . 1 . . . . . . . . . Hauler Manifests 1 | . . . . . . . . . . . . . . . . . . . . . . 1 . . Registered Prototypes 1 | . . . . . . . . . . . . . . . . . . . . . . 1 . . Zone Layout 2 | . . . 1 . . . . . . . . . . . . . . . . . . 1 . . Proto ID Catalog 1 | . . 1 . . . . . . . . . . . . . . . . . . . . . . Fabricator Hacks 2 | . . . . . . . . . . . . . . . 1 . 1 . . . . . . . Network Status 1 | . . . . . . . . . . . . . . . 1 . . . . . . . . . Build 1 | . . . . . . . . . . . . . . . . . 1 . . . . . . . Repair Station Hacks 1 | . . . . . . . . . . . . . . . 1 . . . . . . . . . Scan Component 1 | . . . . . . . . . . . . . . . 1 . . . . . . . . . Recycling Unit Hacks . | . . . . . . . . . . . . . . . . . . . . . . . . . Scanalyzer 3 | . . . . . . . . . . . . . . . . . 2 . . . . 1 . . Retrieve Study 3 | . . . . . . . . . . . . . . . . . 2 . . . . 1 . . Garrison Access Hacks 2 | . . . . . 1 . . . . . . . . . . . . . . . . . 1 . Seal Access 2 | . . . . . 1 . . . . . . . . . . . . . . . . . 1 . Unauthorized Hacks 24 | . . . 17 . . . . . . . . . . . 2 . 3 . . . . 2 . . Terminals 16 | . . . 10 . . . . . . . . . . . 2 . 2 . . . . 2 . . Botnet 11 | . . . 5 . . . . . . . . . . . 2 . 2 . . . . 2 . . Skim 5 | . . . 5 . . . . . . . . . . . . . . . . . . . . . Fabricators . | . . . . . . . . . . . . . . . . . . . . . . . . . Repair Stations . | . . . . . . . . . . . . . . . . . . . . . . . . . Recycling Units 8 | . . . 7 . . . . . . . . . . . . . 1 . . . . . . . Reject 1 | . . . 1 . . . . . . . . . . . . . . . . . . . . . Mask 1 | . . . 1 . . . . . . . . . . . . . . . . . . . . . Tunnel 5 | . . . 5 . . . . . . . . . . . . . . . . . . . . . Scrapoids 1 | . . . . . . . . . . . . . . . . . 1 . . . . . . . Scanalyzers . | . . . . . . . . . . . . . . . . . . . . . . . . . Garrison Access . | . . . . . . . . . . . . . . . . . . . . . . . . . Data Cores Recovered 2 | . . . . . . . . . . . . . . . . . 1 . . . . . 1 . Used 1 | . . . . . . . . . . . . . . . . . 1 . . . . . . . Hacking Detections 23 | . . . 5 . 1 . . . . . . . . . 6 . 4 . . . . 5 2 . Full Trace Events . | . . . . . . . . . . . . . . . . . . . . . . . . . Feedback Events . | . . . . . . . . . . . . . . . . . . . . . . . . . Feedback Blocked . | . . . . . . . . . . . . . . . . . . . . . . . . . Robot Schematics Acquired 6 | . . . . . . . . 6 . . . . . . . . . . . . . . . . Robots Built . | . . . . . . . . . . . . . . . . . . . . . . . . . Authchips . | . . . . . . . . . . . . . . . . . . . . . . . . . Time . | . . . . . . . . . . . . . . . . . . . . . . . . . Total Robot Build Rating . | . . . . . . . . . . . . . . . . . . . . . . . . . Part Schematics Acquired 14 | . . . . . . . . 10 . . . . 4 . . . . . . . . . . . Parts Built 2 | . . . . . . . . . . . . . . . . . 2 . . . . . . . Authchips . | . . . . . . . . . . . . . . . . . . . . . . . . . Time 69 | . . . . . . . . . . . . . . . . . 69 . . . . . . . Total Part Build Rating 18 | . . . . . . . . . . . . . . . . . 18 . . . . . . . Part Studies Acquired 3 | . . . . . . . . . . . . . . . . . 2 . . . . 1 . . Parts Repaired . | . . . . . . . . . . . . . . . . . . . . . . . . . Time . | . . . . . . . . . . . . . . . . . . . . . . . . . Parts Recycled . | . . . . . . . . . . . . . . . . . . . . . . . . . Recycled Matter . | . . . . . . . . . . . . . . . . . . . . . . . . . Retrieved Matter . | . . . . . . . . . . . . . . . . . . . . . . . . . Retrieved Components . | . . . . . . . . . . . . . . . . . . . . . . . . . Parts Scanalyzed . | . . . . . . . . . . . . . . . . . . . . . . . . . Part Schematics Acquired . | . . . . . . . . . . . . . . . . . . . . . . . . . Parts Damaged . | . . . . . . . . . . . . . . . . . . . . . . . . . Bothacking | -11 -10 -10 -9 -9 -6 -6 -6 -6 -5 -5 -5 -5 -5 -4 -4 -4 -4 -4 -4 -4 -3 -3 -3 -3 ------------ Run | Yrd Mat Sub Rec Scr Fac Low Low Dat Pro Fac Upp Upp Zhi Pro Fac Was Fac Upp Upp War Pro Res Qua Sec Used RIF Installer . | . . . . . . . . . . . . . . . . . . . . . . . . . Robots Hacked 7 | . . . . . . . . . . . 1 . 3 . 2 . 1 . . . . . . . Non-combat 2 | . . . . . . . . . . . 1 . . . 1 . . . . . . . . . Combat 3 | . . . . . . . . . . . . . 3 . . . . . . . . . . . Robot Hacks Applied 5 | . . . . . . . . . . . 1 . 3 . 1 . . . . . . . . . parse_system 4 | . . . . . . . . . . . 1 . 3 . . . . . . . . . . . find_chute 1 | . . . . . . . . . . . . . . . 1 . . . . . . . . . Manual 2 | . . . . . . . . . . . . . . . 1 . 1 . . . . . . . Relay Couplers Released . | . . . . . . . . . . . . . . . . . . . . . . . . . Fabnet Peak Effective % . | . . . . . . . . . . . . . . . . . . . . . . . . . Robots Rewired 1 | . . . . . . . . 1 . . . . . . . . . . . . . . . . Allies Hacked . | . . . . . . . . . . . . . . . . . . . . . . . . . Hacks Repelled . | . . . . . . . . . . . . . . . . . . . . . . . . . Allies | -11 -10 -10 -9 -9 -6 -6 -6 -6 -5 -5 -5 -5 -5 -4 -4 -4 -4 -4 -4 -4 -3 -3 -3 -3 -------- Run | Yrd Mat Sub Rec Scr Fac Low Low Dat Pro Fac Upp Upp Zhi Pro Fac Was Fac Upp Upp War Pro Res Qua Sec Total Allies 21 | . . . . . . . . 1 . . . . . . 1 18 1 . . . . . . . Largest Group 18 | . . . . . . . . 1 . . . . . . 1 18 17 . . . . . . . Highest-Rated Group 656 | . . . . . . . . 96 . . . . . . 14 656 631 . . . . . . . Highest-Rated Ally 96 | . . . . . . . . 96 . . . . . . 14 50 50 . . . . . . . Total Orders 3 | . . . . . . . . 3 . . . . . . . . . . . . . . . . STAY 2 | . . . . . . . . 2 . . . . . . . . . . . . . . . . FOLLOW 1 | . . . . . . . . 1 . . . . . . . . . . . . . . . . Ally Attacks 207 | . . . . . . . . 26 . . . . . . . 95 86 . . . . . . . Total Damage 5301 | . . . . . . . . 618 . . . . . . . 2430 2253 . . . . . . . Kills 16 | . . . . . . . . 3 . . . . . . . 6 7 . . . . . . . Allies Corrupted . | . . . . . . . . . . . . . . . . . . . . . . . . . Allies Melted 3 | . . . . . . . . . . . . . . . . . 1 . . 2 . . . . Intel | -11 -10 -10 -9 -9 -6 -6 -6 -6 -5 -5 -5 -5 -5 -4 -4 -4 -4 -4 -4 -4 -3 -3 -3 -3 ------- Run | Yrd Mat Sub Rec Scr Fac Low Low Dat Pro Fac Upp Upp Zhi Pro Fac Was Fac Upp Upp War Pro Res Qua Sec Active Infowar (turns) 14890 | 27 299 1762 . . 1158 557 270 421 601 425 426 226 255 916 473 556 1233 641 848 1339 954 1178 222 103 Optics 9555 | . . 15 . . . . . . . 425 426 226 255 916 473 556 1225 641 848 1122 924 1178 222 103 Sensors 11086 | . . . . . 163 557 270 421 601 425 401 226 253 816 473 556 1057 641 848 1104 954 1178 141 1 IFF 995 | . . . . . 995 . . . . . . . . . . . . . . . . . . . Seismic 2073 | 27 299 1747 . . . . . . . . . . . . . . . . . . . . . . Cloaking 1 | . . . . . . . . . . . . . . . . . . . . . . . . 1 Robot Analysis Total 4 | . . . . . . . . . . . . . 4 . . . . . . . . . . . Derelict Logs Recovered 18 | . . 2 . 5 . 1 2 . 3 . . . . 2 . . . 2 1 . . . . . Drone Launches . | . . . . . . . . . . . . . . . . . . . . . . . . . Drone Recoveries . | . . . . . . . . . . . . . . . . . . . . . . . . . Exploration | -11 -10 -10 -9 -9 -6 -6 -6 -6 -5 -5 -5 -5 -5 -4 -4 -4 -4 -4 -4 -4 -3 -3 -3 -3 ------------- Run | Yrd Mat Sub Rec Scr Fac Low Low Dat Pro Fac Upp Upp Zhi Pro Fac Was Fac Upp Upp War Pro Res Qua Sec Turns Passed 20540 | 161 299 3198 1109 2453 1243 630 342 611 661 425 426 226 255 916 473 556 1241 641 848 1339 954 1178 222 133 Spaces Moved 11962 | 51 114 1389 453 1625 672 442 216 277 444 317 310 186 181 461 330 304 624 387 427 780 456 705 492 319 Core 83 | 3 . . . . . . . . . . . . . . . . . . . . . . . 80 Treads 815 | 48 114 546 100 . 7 . . . . . . . . . . . . . . . . . . . Legs 6011 | . . . . . . . . 139 444 317 310 186 181 461 330 304 624 387 427 780 456 665 . . Wheels 4311 | . . 843 353 1625 665 442 216 138 . . . . . . . . . . . . . 29 . . Hover 742 | . . . . . . . . . . . . . . . . . . . . . . 11 492 239 Flight . | . . . . . . . . . . . . . . . . . . . . . . . . . Fastest Speed 16 | 50 160 120 150 150 112 105 105 108 120 120 120 120 120 120 120 120 120 120 120 110 102 24 17 16 Average Speed 127 | 153 196 180 174 150 136 109 105 125 120 120 120 120 120 120 120 121 120 120 120 114 125 112 28 32 Slowest Speed 400 | 160 240 260 260 150 400 130 123 205 190 120 120 120 120 120 120 190 120 120 120 120 180 176 30 88 Overloaded Moves 226 | . . . . . . . . . . . . . . . . . . . . . . . 8 218 Propulsion Burnouts 1 | . . . . . . . . . . . . . . . . . . . . . . . . 1 Robots Hopped . | . . . . . . . . . . . . . . . . . . . . . . . . . Potential Cave-ins 4 | . . . . . . . . . 2 . . . . . . . 2 . . . . . . . Cave-ins Triggered . | . . . . . . . . . . . . . . . . . . . . . . . . . Exploration Rate (%) 52 | 6 20 83 92 87 25 59 43 81 60 6 65 51 63 69 15 92 22 48 52 82 60 28 64 36 Regions Visited 24 Branch Regions 17 Pre-discovered Areas 15 | . . 1 7 1 . . . 1 . . . . 3 . . . . 2 . . . . . . Known Exits Taken 18 | . . . 1 . 1 1 1 1 1 1 1 1 1 1 . . 1 1 1 1 1 1 1 . Unknown Exits Taken 4 | 1 1 1 . 1 . . . . . . . . . . . . . . . . . . . . Scrap Searched 29 | . . 10 . 4 . 3 2 . 1 . 2 2 . 2 . . . 1 . . 2 . . . Spaces Dug 356 | . . 1 . . 8 2 6 2 19 8 6 . . 13 16 2 60 38 34 6 46 82 5 2 Terrain Destroyed 905 | 13 1 102 5 . 92 5 7 2 60 11 21 . . 20 16 2 109 60 58 62 126 103 28 2 Melee 16 | . . . . . 8 2 4 2 . . . . . . . . . . . . . . . . Projectile 424 | . . 3 5 . 2 3 3 . 19 11 21 . . 20 16 2 58 60 58 23 30 82 6 2 AOE 465 | 13 1 99 . . 82 . . . 41 . . . . . . . 51 . . 39 96 21 22 . Terrain Rammed . | . . . . . . . . . . . . . . . . . . . . . . . . . Walls Destroyed . | . . . . . . . . . . . . . . . . . . . . . . . . . Machines Disabled . | . . . . . . . . . . . . . . . . . . . . . . . . . Actions | -11 -10 -10 -9 -9 -6 -6 -6 -6 -5 -5 -5 -5 -5 -4 -4 -4 -4 -4 -4 -4 -3 -3 -3 -3 --------- Run | Yrd Mat Sub Rec Scr Fac Low Low Dat Pro Fac Upp Upp Zhi Pro Fac Was Fac Upp Upp War Pro Res Qua Sec Total 15834 | 98 183 1922 745 1642 858 520 311 491 523 346 335 189 211 795 389 475 943 478 692 1091 736 960 555 346 Wait 2488 | 25 62 381 271 . 47 24 74 135 30 10 10 4 . 311 23 149 170 49 237 167 212 61 29 7 Move 11940 | 50 113 1388 452 1624 671 441 215 276 443 316 309 185 180 460 330 303 624 386 426 779 455 704 491 319 Hop . | . . . . . . . . . . . . . . . . . . . . . . . . . Pick Up 139 | . 4 18 2 11 18 4 2 11 4 2 . . 8 . 5 . 11 2 . 6 4 22 3 2 Fast Attach 53 | 7 . 3 . 1 10 3 1 10 . . . . 1 . 1 3 1 . . 2 . 6 2 2 Attach 81 | . . 8 . . 15 2 . 6 . 2 . . 1 . 2 . 7 1 . . 9 21 5 2 Detach 14 | . . 1 . . 1 . . . . . . . . . . . . . . . 4 7 1 . Swap 115 | . 1 10 5 1 7 6 3 11 10 2 4 . 5 2 4 3 20 . . 9 4 5 2 1 Drop 127 | . . 3 2 5 12 7 4 11 4 2 . . 8 . 3 5 8 . . 15 1 27 4 6 Fire 770 | 16 3 106 13 . 34 4 7 18 32 12 12 . 4 22 21 12 96 40 29 113 47 107 18 4 Melee 94 | . . . . . 43 29 5 13 . . . . 4 . . . . . . . . . . . Ram 3 | . . . . . . . . . . . . . . . . . . . . . . . . 3 Kick 1 | . . . . . . . . . . . . . . . . . 1 . . . . . . . Crush 4 | . . 4 . . . . . . . . . . . . . . . . . . . . . . Escape Stasis 5 | . . . . . . . . . . . . . . . . . 5 . . . . . . . Rewire . | . . . . . . . . . . . . . . . . . . . . . . . . . Trap . | . . . . . . . . . . . . . . . . . . . . . . . . . Miscellaneous . | . . . . . . . . . . . . . . . . . . . . . . . . . Route ------- -11/Scrapyard -10/Materials -10/Subcaves (discovered 2 exits: [*Mat] / *Rec) -9/Recycling (discovered 2 exits: [*Fac] / *Scr) -9/Scraptown (discovered 2 exits: *Fac x2) -6/Factory -6/Lower Caves -6/Lower Caves -6/Data Miner -5/Proximity Caves -5/Factory (discovered 2 exits: *Upp x2) -5/Upper Caves -5/Upper Caves -5/Zhirov -4/Proximity Caves -4/Factory -4/Waste -4/Factory (discovered 7 exits: *Res x2 / *Upp x2 / *Ext x2 / Arm) -4/Upper Caves -4/Upper Caves (discovered 2 exits: *Res / *War) -4/Warlord -3/Proximity Caves -3/Research (discovered 2 exits: *Qua x2) -3/Quarantine (discovered 2 exits: *Sec / *Frg) -3/Section 7 (discovered 1 exit: [*Res]) History --------- Turn | Location | Event 14 | -11/Scrapyard | Discovered new exit (range 15) 162 | -11/Scrapyard | Entered Materials 310 | -10/Materials | Build established: Mutant 449 | -10/Materials | Discovered new exit (range 6) 461 | -10/Materials | Entered Subcaves 524 | -10/Subcaves | Learned Materials emergency access door positions 803 | -10/Subcaves | Lost 3 parts (1p2w) 1603 | -10/Subcaves | Visited 4L-MR0's lab 1622 | -10/Subcaves | Found Rainbow Chip 1718 | -10/Subcaves | A swath of the cavern ceiling suddenly collapsed 1952 | -10/Subcaves | A Subdweller sparked back to life 1977 | -10/Subcaves | Found Powered Cannon 2087 | -10/Subcaves | Discovered new exit (range 10) 2244 | -10/Subcaves | A swath of the cavern ceiling suddenly collapsed 2523 | -10/Subcaves | Shifting Twisted Machinery released Sub. Optics 2547 | -10/Subcaves | Shifting Twisted Machinery released Battle Cannon 2816 | -10/Subcaves | Learned location of Recycling (-9) 3226 | -10/Subcaves | Build established: Derelict-Mutant 3568 | -10/Subcaves | Core integrity fell below 50% 3619 | -10/Subcaves | Discovered new exit (range 16) 3659 | -10/Subcaves | Entered Recycling 3917 | -9/Recycling | Discovered new exit (range 6) 3951 | -9/Recycling | Build established: Mutant 4325 | -9/Recycling | Identified exit to Scraptown 4465 | -9/Recycling | Learned 2 Storage zone layouts 4522 | -9/Recycling | Learned 2 Storage zone layouts 4567 | -9/Recycling | Learned location of Storage (-9) 4624 | -9/Recycling | Learned Materials emergency access door positions 4690 | -9/Recycling | Learned location of Zion (-7) 4733 | -9/Recycling | Scanned before Scraplab entrance 4754 | -9/Recycling | Entered Scraplab 4768 | -9/Recycling | Entered Scraptown 4995 | -9/Scraptown | Heard Great Nut preacher, LISTEN AND RECITE! 5071 | -9/Scraptown | Visited Artisan Demo Area 5103 | -9/Scraptown | Visited The Evicted 5134 | -9/Scraptown | Visited Comm Corps 5169 | -9/Scraptown | Visited Cyclists 5188 | -9/Scraptown | Visited Shadow of the Wyrm 5407 | -9/Scraptown | Visited UFD Registry 5407 | -9/Scraptown | Registered with UFD as "Carbonback" 5427 | -9/Scraptown | Visited CPS Storage 5445 | -9/Scraptown | Visited Junk Repository 5518 | -9/Scraptown | Scanned Subdweller tech in exchange for log data 5521 | -9/Scraptown | Learned location of Extension (-4) 5526 | -9/Scraptown | Learned 8 Factory zone layouts 5527 | -9/Scraptown | Learned 12 Research zone layouts 5529 | -9/Scraptown | Learned Factory trap positions 5530 | -9/Scraptown | Learned 8 Research zone layouts 5544 | -9/Scraptown | Discovered new exit (range 11) 5575 | -9/Scraptown | Guru changed UFD alias to "Bulletmachine" 5953 | -9/Scraptown | Visited Curators Association 6018 | -9/Scraptown | Visited Chapter 10 6039 | -9/Scraptown | Visited A0-MCA Data Center 6058 | -9/Scraptown | Visited Supply Room 6084 | -9/Scraptown | Visited Abandonware Association 6099 | -9/Scraptown | Learned abandonware demo "REPAIR.EXE" 6099 | -9/Scraptown | Learned abandonware demo "POISON.EXE" 6132 | -9/Scraptown | Visited Modified Component R&D 6184 | -9/Scraptown | Visited DA-N13 Charitable Foundation 6198 | -9/Scraptown | Found DCF Scrap (28 items) 6228 | -9/Scraptown | Visited Scrapoid Pod Storage 6258 | -9/Scraptown | Visited Observation Area 6387 | -9/Scraptown | Delivered Scrap Shield to a Scientist 6569 | -9/Scraptown | Given a D+ rating by A0-MCA 6571 | -9/Scraptown | Found A0-MCA's Component Scanner 7146 | -9/Scraptown | Met Optimus 7146 | -9/Scraptown | Accepted into 0bPrime 7215 | -9/Scraptown | Discovered new exit (range 5) 7221 | -9/Scraptown | Entered Factory 7221 | -6/Factory | Evolved 8 slots: Power x1, Propulsion x3, Utility x3, Weapon x1 7223 | -6/Factory | Loaded intel: 73 trap records 7513 | -6/Factory | Build established: Derelict-Tank 8159 | -6/Factory | Lost 7 parts (1p5n1w) 8252 | -6/Factory | Discovered new exit (range 5) 8360 | -6/Factory | Identified exit to Lower Caves 8456 | -6/Factory | Build established: Scavenger-Mutant 8464 | -6/Factory | Entered Lower Caves 8465 | -6/Lower Caves | Encountered a Warlord checkpoint 8466 | -6/Lower Caves | UFD Scientist delivered a prototype 8469 | -6/Lower Caves | Found Enh. Scrap Shield 8673 | -6/Lower Caves | Attracted the attention of an 0b10 checkpoint 9083 | -6/Lower Caves | Discovered new exit (range 12) 9093 | -6/Lower Caves | Identified exit to Lower Caves 9094 | -6/Lower Caves | Entered another Lower Caves area 9241 | -6/Lower Caves | Encountered a Warlord checkpoint 9253 | -6/Lower Caves | Learned Factory interactive machine intel 9409 | -6/Lower Caves | Discovered new exit (range 13) 9415 | -6/Lower Caves | Learned 12 Factory zone layouts 9430 | -6/Lower Caves | Identified exit to Data Miner 9436 | -6/Lower Caves | Entered Data Miner 9438 | -6/Data Miner | Discovered new exit (range 6) 9458 | -6/Data Miner | Met Data Miner 9477 | -6/Data Miner | Learned location of Section 7 (-3) 9477 | -6/Data Miner | Acquired the access code to Warlord's prototype stash 9497 | -6/Data Miner | Received God Mode back door access code from Data Miner 9516 | -6/Data Miner | Data Conduit disabled 9720 | -6/Data Miner | Attached CPS modules to Enhanced Grunt. 9767 | -6/Data Miner | Attached CPS modules to Enhanced Grunt. 9770 | -6/Data Miner | Lost 4 parts (1p1u2w) 9779 | -6/Data Miner | Attached CPS modules to Enhanced Grunt. 9784 | -6/Data Miner | Found Exp. Thermal Shield 10025 | -6/Data Miner | Identified exit to Proximity Caves 10047 | -6/Data Miner | Entered Proximity Caves 10047 | -5/Proximity Caves | Accompanied by 1 ally 10133 | -5/Proximity Caves | Learned Factory terminal intel 10157 | -5/Proximity Caves | Build established: Scavenger-Skirmisher 10425 | -5/Proximity Caves | Learned Factory trap positions 10432 | -5/Proximity Caves | Found Alien Artifact 10519 | -5/Proximity Caves | Attracted the attention of an 0b10 checkpoint 10631 | -5/Proximity Caves | Discovered new exit (range 9) 10640 | -5/Proximity Caves | Identified exit to Factory 10673 | -5/Proximity Caves | Learned Factory security intel 10708 | -5/Proximity Caves | Entered Factory 10708 | -5/Factory | Evolved 2 slots: Utility x2 10709 | -5/Factory | Identified exit to Upper Caves 10711 | -5/Factory | Loaded intel: 119 trap records 10713 | -5/Factory | Loaded intel: 54 interactive machine locations 10714 | -5/Factory | Loaded intel: 26 terminal locations 11133 | -5/Factory | Entered Upper Caves 11517 | -5/Upper Caves | Entered a destroyed Warlord outpost 11541 | -5/Upper Caves | Discovered new exit (range 6) 11558 | -5/Upper Caves | Identified exit to Upper Caves 11559 | -5/Upper Caves | Entered another Upper Caves area 11650 | -5/Upper Caves | Encountered a Warlord checkpoint 11749 | -5/Upper Caves | Discovered new exit (range 9) 11759 | -5/Upper Caves | Identified exit to Zhirov 11785 | -5/Upper Caves | Entered Zhirov 11785 | -5/Zhirov | Discovered new exit (range 3) 11807 | -5/Zhirov | Met Zhirov 11898 | -5/Zhirov | Attached Powered Cannon, gained temporary slot: Power 11936 | -5/Zhirov | Found Alien Artifact 11936 | -5/Zhirov | Identified Integrated Dissipator 11936 | -5/Zhirov | Installed Integrated Dissipator, increased core heat dissipation (+20) 11953 | -5/Zhirov | Found Alien Artifact 11982 | -5/Zhirov | Learned location of Testing (-2) 12004 | -5/Zhirov | Zhirov requested help retrieving the SGEMP Prototype 12039 | -5/Zhirov | Identified exit to Proximity Caves 12040 | -5/Zhirov | Entered Proximity Caves 12359 | -4/Proximity Caves | Discovered new exit (range 5) 12363 | -4/Proximity Caves | Identified exit to Factory 12463 | -4/Proximity Caves | Learned Research interactive machine intel 12481 | -4/Proximity Caves | Learned location of 1 exit from Upper Caves 12730 | -4/Proximity Caves | Received a Behemoth hack from an annoying Tinkerer 12956 | -4/Proximity Caves | Entered Factory 12956 | -4/Factory | Evolved 2 slots: Propulsion x1, Utility x1 13331 | -4/Factory | Spotted B-86 Titan 13429 | -4/Factory | Manually triggered Chute Trap 13429 | -4/Factory | Sucked down chute 13429 | -4/Factory | Entered Waste 13464 | -4/Waste | Warlord forces began an assault 13487 | -4/Waste | Spotted C-40 Crusher 13492 | -4/Waste | Spotted C-40 Crusher 13492 | -4/Waste | Allies destroyed C-40 Crusher 13504 | -4/Waste | Allies destroyed C-40 Crusher 13511 | -4/Waste | Spotted C-40 Crusher 13518 | -4/Waste | Destroyed C-40 Crusher 13523 | -4/Waste | Spotted C-40 Crusher 13529 | -4/Waste | Allies destroyed C-40 Crusher 13547 | -4/Waste | Spotted C-40 Crusher 13550 | -4/Waste | Allies destroyed C-40 Crusher 13559 | -4/Waste | Spotted C-40 Crusher 13562 | -4/Waste | Allies destroyed C-40 Crusher 13775 | -4/Waste | Discovered new exit (range 13) 13953 | -4/Waste | Identified exit to Factory 13985 | -4/Waste | Entered Factory 13985 | -4/Factory | Accompanied by 17 allies 14091 | -4/Factory | Spotted B-86 Titan 14135 | -4/Factory | Lost 8 allies 14156 | -4/Factory | P-70 Sage assimilated allied 63-YET(m) 14167 | -4/Factory | Destroyed B-86 Titan 14485 | -4/Factory | Discovered new exit (range 20) 14512 | -4/Factory | Identified exit to Research 14599 | -4/Factory | Identified exit to Upper Caves 14599 | -4/Factory | Identified exit to Extension 14599 | -4/Factory | Identified exit to Armory 14671 | -4/Factory | Central database locked down 14945 | -4/Factory | Discovered exit to Research (range 11) 15126 | -4/Factory | Fabricated Enh. Nova Cannon? 15183 | -4/Factory | System corruption reached 10% 15226 | -4/Factory | Entered Upper Caves 15227 | -4/Upper Caves | Identified exit to Upper Caves 15280 | -4/Upper Caves | Entered an active Warlord outpost 15307 | -4/Upper Caves | Learned Factory emergency access door positions 15307 | -4/Upper Caves | Learned Extension security intel 15307 | -4/Upper Caves | Learned Factory terminal intel 15307 | -4/Upper Caves | Learned Factory garrison access intel 15307 | -4/Upper Caves | Learned Extension garrison access intel 15382 | -4/Upper Caves | Ambushed by wild Derelicts 15867 | -4/Upper Caves | Entered another Upper Caves area 16365 | -4/Upper Caves | Discovered exit to Research (range 18) 16608 | -4/Upper Caves | Identified exit to Warlord 16715 | -4/Upper Caves | Entered Warlord 16755 | -4/Warlord | System corruption cleaned by Quarantine Array 16961 | -4/Warlord | Received a Watcher feed algorithm from an ecstatic Tinkerer 17107 | -4/Warlord | Opened Warlord's prototype stash 17112 | -4/Warlord | Found Vortex Chain Reactor 17124 | -4/Warlord | Found Ghost Barrier 17177 | -4/Warlord | Visited the Vortex Lab 17185 | -4/Warlord | Found Vortex Driver 17194 | -4/Warlord | Warlord's base attacked by MAIN.C 17449 | -4/Warlord | Lost 4 allies 17544 | -4/Warlord | Warlord forces counterattacked 17590 | -4/Warlord | Spotted Striker 17590 | -4/Warlord | Spotted Striker 17633 | -4/Warlord | Found Hvy. Autocannon 17666 | -4/Warlord | Lost 17 allies 17729 | -4/Warlord | Spotted B-90 Cyclops 17739 | -4/Warlord | Destroyed B-90 Cyclops 17759 | -4/Warlord | Spotted Striker 17771 | -4/Warlord | Destroyed Striker 17777 | -4/Warlord | Spotted B-86 Titan 17812 | -4/Warlord | Lost 11 allies 17829 | -4/Warlord | Destroyed B-86 Titan 17869 | -4/Warlord | Warlord base infiltrated, sounded retreat 17915 | -4/Warlord | Spotted Striker 17918 | -4/Warlord | Spotted Striker 17941 | -4/Warlord | Spotted Executioner 17949 | -4/Warlord | Rebuked by Warlord 17964 | -4/Warlord | Destroyed Executioner 17971 | -4/Warlord | Found Corrupted Chain Missile Launcher 17979 | -4/Warlord | Lost 4 allies 17990 | -4/Warlord | Discovered new exit (range 19) 17994 | -4/Warlord | Spotted Striker 17997 | -4/Warlord | Murdered 7 allies 18023 | -4/Warlord | Destroyed 10 combat bots 18024 | -4/Warlord | Identified exit to Proximity Caves 18036 | -4/Warlord | Lost 3 allies 18054 | -4/Warlord | Entered Proximity Caves 18268 | -3/Proximity Caves | Spotted B-86 Titan 18372 | -3/Proximity Caves | Lost 4 parts (3n1u) 18391 | -3/Proximity Caves | Destroyed B-86 Titan 18418 | -3/Proximity Caves | Lost 4 parts (2p1u1w) 18625 | -3/Proximity Caves | Core integrity fell below 50% 18990 | -3/Proximity Caves | Discovered exit to Research (range 7) 19008 | -3/Proximity Caves | Entered Research 19008 | -3/Research | Evolved 2 slots: Utility x2 19010 | -3/Research | Loaded intel: 46 interactive machine locations 19010 | -3/Research | Attached Rainbow Chip, gained temporary slots: Power, Propulsion, Utility, Weapon 19126 | -3/Research | Spotted B-86 Titan 19193 | -3/Research | Spotted B-86 Titan 19193 | -3/Research | Spotted B-86 Titan 19317 | -3/Research | Build established: Hacker-Mutant 19662 | -3/Research | Found Quantum Capacitor 19696 | -3/Research | Build established: Hacker-Skirmisher 19921 | -3/Research | Identified exit to Quarantine 20186 | -3/Research | Entered Quarantine 20298 | -3/Quarantine | Lost 3 parts (1p1n1u) 20325 | -3/Quarantine | Found Alien Artifact 20325 | -3/Quarantine | Identified Core Reset Matrix 20325 | -3/Quarantine | Identified Dimensional Node Initializer 20325 | -3/Quarantine | Identified Transdimensional Reconstructor 20325 | -3/Quarantine | Used Core Reset Matrix 20329 | -3/Quarantine | Detected hypermatrix surge 20329 | -3/Quarantine | Sensed 5 artifacts in vicinity 20386 | -3/Quarantine | Spotted Fortress 20405 | -3/Quarantine | Discovered new exit (range 5) 20405 | -3/Quarantine | Discovered new exit (range 6) 20406 | -3/Quarantine | Identified exit to Section 7 20407 | -3/Quarantine | Identified exit to Protoforge 20408 | -3/Quarantine | Entered Section 7 20409 | -3/Section 7 | Detected hypermatrix surge 20409 | -3/Section 7 | Sensed 24 artifacts in vicinity 20429 | -3/Section 7 | Found Spacefold Activator 20483 | -3/Section 7 | Discovered new exit (range 8) 20500 | -3/Section 7 | Spotted Executioner 20501 | -3/Section 7 | Spotted Executioner 20517 | -3/Section 7 | Core integrity fell below 50% 20531 | -3/Section 7 | Core integrity fell below 20% 20541 | -3/Section 7 | Destroyed by C-35 Carver with Carbide Saw Last Messages --------------- 20511_ Enh. Optical Array severed. 20513_ Hacking Suite severed. 20513_ Temporary Utility slot lost. 20523_ A0-MCA's Component Scanner severed. 20527_ Adv. Signal Interpreter destroyed. 20527_ System corrupted by crushing effect (+4). 20527_ Knocked back. 20527_ Rainbow Chip destroyed. 20527_ Knocked back. 20527_ C-35 Carver knocked back. 20527_ C-35 Carver system corrupted by crushing effect. 20527_ C-35 Carver knocked back. 20528_ System corrupted: Substantial component data lost. 20528_ Temporary Power slot lost. 20528_ Temporary Weapon slot lost. 20528_ C-35 Carver destroyed. 20539_ Sigix Exoskeleton lights up in response to your presence. Map ----- +----------------------------------------------------+ | ??????????????????????????????????????????? | | """?????????????????????????????????????????? | | ?????????????????????????????????????????? | | """????????????????????????????????????????? | | ???????? ????????????????????????????? | | ?????? ????????????????????????????? | | ??????? ???????????????????????????? | | "??????????? ""??? ??????????????????? | | ""???????????" ???? ????????????????? | | """"""""""""" "???? ???????????????? | | "???? ?????????????? | | " """"" ????????????? | | " ????????????? | | """ ???????????? | | " ???????????? | | ???????????? | | ????????????? | | ????????????? | | ????????????? | | """"" """"???????????????? | | """""""""""""" ### """"???????????????? | | """"""""""""""""""#?# """"???????????????? | | ###################?####cc/#####????????????????? | | ????????????????????#""" c"""#?????????????????? | | ????????????????????#"""cc """#?????????????????? | | ????????????????????#""" @ """#?????????????????? | | ????????????????????#""" """#?????????????????? | | ????????????????????#""" """#?????????????????? | | ????????????????????#""" """#?????????????????? | | ????????????????????#"" ""#?????????????????? | | ????????????????????#" "#?????????????????? | | ?????????????????????" "??????????????????? | | ????????????????????#" "#?????????????????? | | ????????????????????#"" T"#?????????????????? | | ?????????????????????" """ "??????????????????? | | ????????????????????#" "X" "#?????????????????? | | ?????????????????????" "#" "??????????????????? | | ?????????????????????"""???"""??????????????????? | | ?????????????????????###???###??????????????????? | | ????????????????????????????????????????????????? | | ????????????????????????????????????????????????? | | ????????????????????????????????????????????????? | | ????????????????????????????????????????????????? | | ????????????????????????????????????????????????? | | ????????????????????????????????????????????????? | | ????????????????????????????????????????????????? | | ????????????????????????????????????????????????? | | ????????????????????????????????????????????????? | | ????????????????????????????????????????????????? | | ????????????????????????????????????????????????? | +----------------------------------------------------+ Best States ------------- Heat Dissipation 82 Coolant Potential 120 Energy Generation 59 Energy Capacity 770 Matter Stores 300 Matter Capacity 300 Sight Range 22 Robot Scan Range 19 Terrain Scan Density 210 Armor Coverage 225 Resistance: KI 30 Resistance: TH 30 Evasion (%) 72 Targeting Accuracy 8 Recoil Reduction 4 Offensive Hacking 24 Defensive Hacking 20 Item Schematics ----------------- None Robot Schematics ------------------ None Fabricated ------------ Enh. Nova Cannon | x2 | -4/Factory | Preloaded Repaired ---------- Nothing Studied --------- None Alien Tech Used ----------------- Integrated Dissipator Core Reset Matrix Achievements -------------- Analysis Probe I Have A Map? Junior Dev Longdome?! My Bad Myspace Network Effect Not Today, Chutes Plot Armor Protector Wiki Contributor Challenges ------------ None Game ------ Seed GreatEncryptedMace Manual? 0 Play Time 03:19:06 Cumulative 510.4 hours Start 2025.11.11 @ 18:54:32 End 2025.11.13 @ 15:38:00 Sessions 7 Manual Loads 0 Difficulty Rogue Special Mode None Game No. 225 Rogue 132 Adventurer 41 Explorer 52 Win Type - Total 57 Types 27/6/9/1/1/2/8/1/1/1 Lore% 96 Gallery% 92 Achievement% 55 Wizard Run 0 Options --------- Layout 2 ASCII 0 Keyboard 0 Movement Mouse Keybinds 1 Fullscreen 1 Font 32/Tamsyn Map View 50x44 Zoom Use 0% Tactical HUD 1 Map Filters NONE Filters NONE Steam 1 RUN: 96089f3f-1d2e-4bdb-881f-75685cb94ddf